[Event "Mitropa Cup Open 2022"]
[Site "Corte"]
[Date "2022.05.06"]
[Round "7.5"]
[White "Piscopo, Pierluigi"]
[Black "Blohberger, Felix"]
[Result "1-0"]
[ECO "B93"]
[WhiteElo "2347"]
[BlackElo "2510"]
[Annotator "TA"]
[PlyCount "85"]
[EventDate "2022.04.30"]
[EventType "team-tourn"]
[EventCountry "FRA"]
[SourceTitle "playchess.com"]
[Source "ChessBase"]
[SourceQuality "1"]
[WhiteTeam "France"]
[BlackTeam "Austria"]
[WhiteTeamCountry "ITA"]
[BlackTeamCountry "AUT"]
[TimeControl "40/5400+30:1800+30"]

{[%evp 18,85,4,-12,3,-2,17,26,69,51,107,82,92,47,72,47,44,32,71,84,73,94,113,53,48,64,69,43,244,226,279,295,353,353,633,610,1063,1035,1635,716,2493,1627,1560,1512,1815,1721,2314,929,29973,944,926,924,952,935,902,854,1506,1393,5466,2114,29973,29974,29970,29974,29967,29970,29988,29989,29988,1298]} 1. e4 {[%emt 0:00:03]} c5 {[%emt 0:00:13]} 2. Nf3 {[%emt 0:00:05]} d6 {[%emt 0:00:07]} 3. d4 {[%emt 0:00:06]} cxd4 {[%emt 0:00:06]} 4. Nxd4 {[%emt 0:00:04]} Nf6 {[%emt 0:00:07]} 5. Nc3 {[%emt 0:00:04]} a6 {[%emt 0:00:05]} 6. f4 {[%emt 0:00:18]} e5 {[%emt 0:00:25]} 7. Nf3 {[%emt 0:00:13]} Nbd7 {[%emt 0:01:15]} 8. a4 {[%emt 0:00:41]} Be7 {[%emt 0:02:11]} 9. Bc4 {[%emt 0:01:17]} O-O {[%emt 0:01:03]} 10. O-O {[%emt 0:00:19]} Qc7 {[%emt 0:04:00] B93: Sicilian Najdorf: 6 f4.} 11. Ba2 {[%emt 0:09:07]} b6 {[%emt 0:13:59] [#]} 12. Nh4 $146 {[%emt 0:13:07]} ({Predecessor:} 12. fxe5 dxe5 13. Bg5 Bb7 14. Qe2 Rac8 15. Nh4 Bb4 16. Nf5 Bxc3 17. bxc3 Rce8 18. Nh6+ gxh6 19. Bxf6 Nxf6 20. Rxf6 {1-0 (45) Koepke,C-Petzold,L Friedrichroda 1997}) 12... Bb7 {[%emt 0:16:05] White has an edge.} 13. Nf5 {[%emt 0:03:01]} Nc5 {[%emt 0:00:36]} (13... Rae8 $14) 14. fxe5 $16 {[%emt 0:10:18]} dxe5 {[%emt 0:00:10]} 15. Nd5 {[%emt 0:00:35]} Bxd5 {[%emt 0:05:35]} 16. Bxd5 {[%emt 0:03:05]} Rad8 {[%emt 0:03:16]} (16... Ncxe4 $2 17. Bxe4 Nxe4 18. Qg4 Bc5+ 19. Kh1 $18) 17. Qf3 {[%cal Oc1h6]} Nxd5 {[%emt 0:02:53]} 18. exd5 {[%emt 0:03:44][%cal Oc1h6]} f6 {[%emt 0:04:32]} 19. a5 {[%emt 0:21:29]} b5 {[%emt 0:02:51]} 20. c4 $40 {[%emt 0:12:40][%mdl 128] White is up to no good.} (20. b4 $16) 20... bxc4 $14 {[%emt 0:02:34] White must now prevent ...Nb3.} 21. Qg4 $1 {[%emt 0:00:39][%csl Gf5,LRc4,LRg7][%cal Rg4g7]} Bd6 {[%emt 0:06:05]} 22. Qxc4 {[%emt 0:00:53] Strongly threatening b3. White is more active.} e4 $2 {[%emt 0:07:36] A mistake that costs the game.} (22... Ne6 $1 $14 23. b3 Qxc4 24. bxc4 Bc5+ 25. Be3 Bxe3+ 26. Nxe3 Nc5) 23. Be3 $1 $18 {[%emt 0:06:22]} Nd3 {[%emt 0:03:55]} (23... Bxh2+ $2 24. Kh1 Nb7 25. Qxa6) 24. Qxe4 {[%emt 0:01:43]} Nxb2 {[%emt 0:02:01]} (24... Bxh2+ $2 25. Kh1 Nxb2 26. Qe6+ Qf7 27. Kxh2 $18) 25. Rac1 {[%emt 0:03:23]} Bxh2+ {[%emt 0:09:58]} (25... Qd7 26. Bd4 Rfe8) 26. Kh1 {[%emt 0:00:19]} Qe5 {[%emt 0:01:28]} 27. Qg4 {[%emt 0:01:15][%csl Gf5][%cal Rg4g7]} Rd7 {[%emt 0:00:30]} 28. Bd4 {[%emt 0:03:30]} (28. Nh6+ $142 Kh8 29. Rc8 $3 {[%mdl 512]} Rxc8 30. Nf7+ $1 {[%mdl 512]} Kg8 31. Nxe5 Bxe5 32. Qxd7) 28... Qxd5 {[%emt 0:00:07]} 29. Bxb2 {[%emt 0:00:08]} h5 {[%emt 0:00:45]} 30. Qxh5 {[%emt 0:01:42] White threatens Ne7+ and mate.} Be5 {[%emt 0:01:05] [#]} 31. Rcd1 $1 {[%emt 0:02:21]} Qb5 {[%emt 0:02:51]} (31... Qf7 32. Qg4) 32. Ba3 {[%emt 0:01:04]} (32. Bxe5 $142 Ra7 33. Bd6) 32... Rff7 {[%emt 0:04:26] [#]} 33. Ne7+ $1 {[%emt 0:00:29]} Rfxe7 {[%emt 0:00:13]} 34. Bxe7 {[%emt 0:00:05] Qe8+ is the strong threat.} Rd5 {[%emt 0:00:03]} 35. Qf3 {[%emt 0:02:41]} Bd4 {[%emt 0:00:47]} 36. g4 {[%emt 0:00:24]} ({Not} 36. Qh3 $2 {[#]} Rh5 $1 37. Rf3 Rxh3+ 38. Rxh3 Qe2 $1 39. Rxd4 Qe1+ 40. Kh2 Qe5+ 41. Rg3 Qxd4 $19) 36... Qd7 {[%emt 0:03:38]} 37. Rfe1 {[%emt 0:00:34]} Rxa5 {[%emt 0:00:43]} 38. Bb4 {[%emt 0:00:52]} Rg5 {[%emt 0:00:41]} 39. Qa8+ {[%emt 0:00:37] White mates.} Kh7 {[%emt 0:00:06]} 40. Qe4+ {[%emt 0:00:08]} f5 {[%emt 0:00:23] [#]} 41. Rxd4 $1 {[%emt 0:07:33][%mdl 512]} Qc7 {[%emt 0:03:35]} (41... fxe4 42. Rxd7) 42. Qf3 {[%emt 0:04:39]} Rg6 {[%emt 0:02:16]} 43. g5 {[%emt 0:02:42] Weighted Error Value: White=0.18 (very precise) /Black=0.73} (43. Kg2 $142 Qc8 44. Rh1+ Rh6 45. Rxh6+ gxh6 46. gxf5 Qc7 47. Bc3 Qg7+ 48. Kh3) 1-0

[Event "Mitropa Cup Open 2022"]
[Site "Corte"]
[Date "2022.05.06"]
[Round "7.6"]
[White "Druska, Juraj"]
[Black "Krastev, Alexander"]
[Result "0-1"]
[ECO "A28"]
[WhiteElo "2508"]
[BlackElo "2412"]
[Annotator "TA"]
[PlyCount "70"]
[EventDate "2022.04.30"]
[EventType "team-tourn"]
[EventCountry "FRA"]
[SourceTitle "playchess.com"]
[Source "ChessBase"]
[SourceQuality "1"]
[WhiteTeam "Slovakia"]
[BlackTeam "Germany"]
[WhiteTeamCountry "SVK"]
[BlackTeamCountry "GER"]
[TimeControl "40/5400+30:1800+30"]

{[%evp 11,70,-2,9,-44,-55,-66,-51,-70,-41,-57,-62,-74,-56,-56,-47,-50,-47,-179,-187,-243,-243,-242,-242,-237,-173,-243,-158,-151,-146,-148,-158,-156,-147,-172,-160,-179,-165,-166,-162,-231,-220,-280,-262,-268,-264,-266,-268,-267,-266,-281,-273,-267,-255,-325,-319,-369,-254,-266,-257,-387,-354]} 1. c4 {[%emt 0:00:13]} Nf6 {[%emt 0:05:55]} 2. Nc3 {[%emt 0:06:54]} e5 {[%emt 0:03:09]} 3. Nf3 {[%emt 0:01:08]} Nc6 {[%emt 0:00:35]} 4. e3 {[%emt 0:00:12]} Bb4 {[%emt 0:01:17]} 5. Qc2 {[%emt 0:00:10]} O-O {[%emt 0:04:41]} 6. Nd5 {[%emt 0:00:58]} Re8 {[%emt 0:00:44]} 7. Nxb4 {[%emt 0:40:31] A28: English Opening: Four Knights Variation.} (7. Ng5 $11) 7... Nxb4 $15 {[%emt 0:00:14]} 8. Qb3 {[%emt 0:00:30]} c5 {[%emt 0:18:27]} 9. a3 {[%emt 0:02:33] [#] Black is slightly better.} Qa5 $146 {[%emt 0:02:15]} ({Predecessor:} 9... Nc6 10. d3 d5 11. cxd5 Nxd5 12. Be2 b6 13. O-O a5 14. Qc2 Ba6 15. b3 Ra7 {1-0 (47) Lenic,L (2595)-Jovanic,O (2533) Nova Gorica 2010}) 10. Rb1 {[%emt 0:10:10]} Nc6 {[%emt 0:00:46]} 11. Qb5 {[%emt 0:00:26]} Qc7 {[%emt 0:19:06]} 12. d3 $1 {[%emt 0:04:45]} d6 {[%emt 0:00:25]} 13. Be2 {[%emt 0:03:19]} Bf5 {[%emt 0:01:03] ...e4 is the strong threat.} 14. e4 {[#] This costs White the game.} ({White should play} 14. Nh4 $15 Bd7 15. Qb3) 14... Nxe4 $1 $19 {[%emt 0:04:31] Threatens to win with ...Nf6.} 15. Nh4 {[%emt 0:10:31] [#]} ({But not} 15. dxe4 Bxe4 16. Nd2 (16. Ra1 $2 Bc2 $19) 16... Bc2) (15. O-O {might work better.}) 15... Nd4 $1 {[%emt 0:02:55]} 16. Qa4 {[%emt 0:00:06] [#]} Bd7 {[%emt 0:02:30]} 17. Qd1 {[%emt 0:00:01]} Nf6 {[%emt 0:04:13] Pair of Knights!} 18. O-O {[%emt 0:00:08]} (18. Bg5 $142) 18... a5 {[%emt 0:06:43]} 19. Bg5 {[%emt 0:04:46]} Re6 {[%emt 0:00:27] Black is much more active. The white rooks are badly placed.} 20. Nf3 {[%emt 0:01:00]} Nxe2+ {[%emt 0:00:58]} 21. Qxe2 {[%emt 0:00:01]} Bc6 {[%emt 0:02:00]} 22. Nd2 {[%emt 0:02:40]} Nd7 {[%emt 0:00:36] Strongly threatening ...Rg6.} 23. f3 {[%emt 0:00:54]} a4 {[%emt 0:00:24]} 24. Ne4 {[%emt 0:00:45]} Nf8 {[%emt 0:03:15]} 25. Qe1 {[%emt 0:01:35]} (25. Be3 {keeps fighting.}) 25... Rg6 {[%emt 0:05:41] And now ...Bxe4 would win.} 26. h4 {[%emt 0:00:33]} f5 {[%emt 0:02:57]} 27. h5 {[%emt 0:03:10]} Re6 {[%emt 0:00:05]} 28. Nc3 {[%emt 0:00:18]} f4 {[%emt 0:02:48]} 29. g4 {[%emt 0:03:02]} fxg3 {[%emt 0:01:54]} 30. Qxg3 {[%emt 0:00:01]} h6 {[%emt 0:00:19]} 31. Bd2 {[%emt 0:01:19]} Qf7 {[%emt 0:00:25]} 32. Qh4 {[%emt 0:00:15]} Nd7 {[%emt 0:03:14]} ({Wrong is} 32... Bxf3 $2 33. Qh3 Rf6 34. Ne4 Bxe4 35. Rxf6 Qxf6 36. Rf1 $19) 33. f4 {[%emt 0:02:40]} Nf6 {[%emt 0:00:31] Hoping for ...exf4.} 34. f5 {[%emt 0:00:08]} Re7 {[%emt 0:00:19]} 35. Ne4 {[%emt 0:01:14]} (35. Rbe1 {was worth a try.}) 35... Bxe4 {[%emt 0:01:16] Weighted Error Value: White=0.33/Black=0.10 (very precise)} 0-1

[Event "Mitropa Cup Open 2022"]
[Site "Corte"]
[Date "2022.05.06"]
[Round "7.6"]
[White "Shengelia, David"]
[Black "Humeau, Cyril"]
[Result "1-0"]
[ECO "A18"]
[WhiteElo "2484"]
[BlackElo "2290"]
[Annotator "TA"]
[PlyCount "41"]
[EventDate "2022.04.30"]
[EventType "team-tourn"]
[EventCountry "FRA"]
[SourceTitle "playchess.com"]
[Source "ChessBase"]
[SourceQuality "1"]
[WhiteTeam "Austria"]
[BlackTeam "France"]
[WhiteTeamCountry "AUT"]
[BlackTeamCountry "FRA"]
[TimeControl "40/5400+30:1800+30"]

{[%evp 18,41,30,25,31,36,22,13,22,30,78,66,79,84,82,75,182,177,308,199,380,380,372,368,983,677]} 1. c4 {[%emt 0:00:08]} Nf6 {[%emt 0:00:22]} 2. Nc3 {[%emt 0:00:33]} e6 {[%emt 0:01:49]} 3. e4 {[%emt 0:02:25]} d5 {[%emt 0:01:25]} 4. e5 {[%emt 0:00:26]} d4 {[%emt 0:00:18]} 5. exf6 {[%emt 0:00:05]} dxc3 {[%emt 0:00:03]} 6. bxc3 {[%emt 0:00:06]} Qxf6 {[%emt 0:05:27]} 7. Nf3 {[%emt 0:00:22]} c5 {[%emt 0:05:53]} 8. d4 {[%emt 0:00:59]} h6 {[%emt 0:00:57]} 9. Bd3 {[%emt 0:02:40]} Nc6 {[%emt 0:01:22]} 10. O-O {[%emt 0:01:34] aiming for d5.} cxd4 {[%emt 0:05:36] A18: English Opening: Flohr-Mikenas System (1 c4 Nf6 2 Nc3 e6 3 e4).} 11. cxd4 {[%emt 0:00:56]} Nxd4 {[%emt 0:00:19]} 12. Nxd4 {[%emt 0:00:16]} Qxd4 {[%emt 0:00:08] The position is equal.} 13. Rb1 {[%emt 0:00:21]} Bd6 {[%emt 0:07:03]} (13... Bc5 $11) 14. Bb2 $16 {[%emt 0:00:56][%mdl 1024] White has strong compensation.} Qh4 {[%emt 0:02:04][%csl Gd6][%cal Rh4h2] [#]} 15. g3 {[%emt 0:00:28]} Qg5 {[%emt 0:00:04]} 16. h4 $36 {[%emt 0:00:11][%mdl 2048] White is on the roll.} Qe7 {[%emt 0:00:03]} (16... Qc5 $16 {was called for.}) 17. Qg4 $18 {[%emt 0:08:51]} ({Weaker is} 17. Bxg7 Rg8 18. c5 (18. Bxh6 $2 Qxh4 19. Rb2 Bc5 $19) 18... Bxg3 19. Bb5+ Bd7 20. Bxd7+ Qxd7 21. Qxd7+ Kxd7 22. fxg3 Rxg7 $11) 17... f6 {[%emt 0:09:32]} (17... Rg8 {was worth a try.}) 18. Bg6+ {[%emt 0:01:10]} Kf8 $2 {[%emt 0:00:31]} (18... Kd8 19. Be4 Bc5) 19. Rfd1 {[%emt 0:00:55][%cal Od1d6] [#] Black must now prevent Rxd6!} Bc5 {[%emt 0:01:16]} 20. Qf3 {[%emt 0:05:17]} Rb8 $2 {[%emt 0:04:04] [#]} (20... h5 21. Qd3 (21. Bxh5 Bxf2+ 22. Kxf2 Qc5+ 23. Ke2 Qxh5 $18) 21... Rh6 22. Qd8+ Qxd8 23. Rxd8+ Ke7 24. Re8+ Kd7 25. Rd1+ Bd6) 21. Qd3 $146 {[%emt 0:02:26] Weighted Error Value: White=0.15 (very precise) /Black=0.80} ({Predecessor:} 21. Be5 Ra8 22. Rb5 Ba3 23. c5 {1-0 (23) Dobrowolski,M-Talv,F GER corr 1980}) 1-0

[Event "Mitropa Cup Open 2022"]
[Site "Corte"]
[Date "2022.05.06"]
[Round "7.7"]
[White "Koelle, Tobias"]
[Black "Sahidi, Samir"]
[Result "1/2-1/2"]
[ECO "D43"]
[WhiteElo "2431"]
[BlackElo "2459"]
[Annotator "TA"]
[PlyCount "115"]
[EventDate "2022.04.30"]
[EventType "team-tourn"]
[EventCountry "FRA"]
[SourceTitle "playchess.com"]
[Source "ChessBase"]
[SourceQuality "1"]
[WhiteTeam "Germany"]
[BlackTeam "Slovakia"]
[WhiteTeamCountry "GER"]
[BlackTeamCountry "SVK"]
[TimeControl "40/5400+30:1800+30"]

{[%evp 17,115,16,8,0,0,0,0,0,0,0,0,-4,0,-7,0,-9,-3,-6,0,0,0,0,0,0,0,-14,-4,-50,-36,-22,0,0,0,-7,0,-6,-10,-12,-9,-58,-13,-22,-15,-58,0,0,0,0,0,0,0,0,0,0,0,0,0,0,0,0,0,0,0,0,0,0,0,0,0,0,0,0,0,0,0,0,0,0,0,0,0,0,0,0,0,0,0,0,0,0,0,0,0,0,0,0,0,0,0,0]} 1. d4 {[%emt 0:00:03]} Nf6 {[%emt 0:00:32]} 2. c4 {[%emt 0:00:06]} e6 {[%emt 0:00:29]} 3. Nf3 {[%emt 0:00:08]} d5 {[%emt 0:00:37]} 4. Nc3 {[%emt 0:00:11]} c6 {[%emt 0:01:39]} 5. Bg5 {[%emt 0:00:05]} h6 {[%emt 0:02:55]} 6. Bxf6 {[%emt 0:00:02]} Qxf6 {[%emt 0:00:31]} 7. e3 {[%emt 0:00:03]} Nd7 {[%emt 0:01:11]} 8. Bd3 {[%emt 0:02:08]} Bd6 {[%emt 0:05:05]} 9. O-O {[%emt 0:00:29]} Qe7 {[%emt 0:02:06]} 10. cxd5 {[%emt 0:06:49] D43: Semi-Slav: 5 Bg5 h6.} exd5 {[%emt 0:02:30]} 11. e4 dxe4 {[%emt 0:00:17]} 12. Re1 {[%emt 0:05:57]} O-O {[%emt 0:06:35]} (12... f5 $2 {[#]} 13. Nxe4 $1 {[%mdl 512]} O-O 14. Neg5 $1 {[%mdl 512]} Bxh2+ 15. Kxh2 $18) 13. Bxe4 {[%emt 0:07:47]} Qd8 {[%emt 0:00:17]} 14. Bc2 {[%emt 0:01:06]} Nf6 {[%emt 0:00:37] [#]} 15. Ne5 $146 {[%emt 0:04:15]} ({Predecessor:} 15. Qd3 Be6 16. h4 Re8 17. h5 Qa5 18. Ne4 Nxe4 19. Qxe4 Kf8 20. Qh7 Rad8 21. g4 {1-0 (38) Bu,X (2656)-Zhang,P (2657) Shandong 2007}) 15... Re8 {[%emt 0:04:18]} 16. Qf3 {[%emt 0:05:55]} Be6 {[%emt 0:05:29]} 17. Ne4 {[%emt 0:08:11]} Bxe5 18. dxe5 {[%emt 0:01:11]} Nxe4 {[%emt 0:10:44]} 19. Qxe4 {[%emt 0:01:35] Strongly threatening Rad1.} ({Don't play} 19. Rxe4 Bd5 20. Qg4 Bxe4 21. Qxe4 g6 $17) 19... g6 {[%emt 0:00:20]} 20. Qe3 {[%emt 0:02:19]} Kg7 {[%emt 0:00:41]} 21. Bb3 {[%emt 0:02:34]} Qb6 {[%emt 0:04:29]} 22. Rad1 {[%emt 0:12:50]} (22. Bxe6 $11 Qxe3 23. Rxe3 Rxe6 24. Rd1) 22... Qxe3 {[%emt 0:11:54]} 23. Rxe3 {[%emt 0:00:12]} Rad8 {[%emt 0:00:10]} (23... Bxb3 {looks sharper.} 24. Rxb3 Rxe5 25. Rxb7 Rd8) 24. Rxd8 $1 {[%emt 0:02:56]} Rxd8 $11 {[%mdl 4096] Endgame KRB-KRB} 25. Kf1 {[%emt 0:01:00]} Rd2 {[%emt 0:03:22]} 26. Re2 {[%emt 0:10:40]} Rd4 {[%emt 0:01:10]} 27. Re3 {[%emt 0:01:59]} g5 {[%emt 0:04:43]} 28. Ke2 {[%emt 0:05:28]} (28. Bxe6 $11 fxe6 29. Rb3) 28... c5 {[%emt 0:03:52]} 29. Bxe6 {[%emt 0:03:37]} fxe6 {[%emt 0:00:14] KR-KR} 30. Rb3 {[%emt 0:04:54]} Rd7 {[%emt 0:04:44]} ({Black should try} 30... b6 $15) 31. g3 {[%emt 0:08:20] The position is equal.} g4 {[%emt 0:06:49]} 32. f3 {[%emt 0:00:45]} h5 {[%emt 0:00:52]} 33. fxg4 {[%emt 0:00:20]} hxg4 {[%emt 0:00:08]} 34. Ra3 {[%emt 0:00:02]} Kg6 {[%emt 0:02:10]} 35. Rxa7 {[%emt 0:00:23]} Kf5 {[%emt 0:02:19]} 36. a4 {[%emt 0:03:03]} Rd4 {[%emt 0:06:32]} 37. Rxb7 {[%emt 0:00:15] Threatens to win with a5.} Rxa4 {[%emt 0:00:12]} 38. Rb5 {[%emt 0:00:49]} Re4+ {[%emt 0:02:28]} 39. Kd3 {[%emt 0:00:39]} Rxe5 {[%emt 0:01:57]} 40. b4 {[%emt 0:00:17]} cxb4 {[%emt 0:04:00]} 41. Rxb4 {[%emt 0:30:07]} Rd5+ {[%emt 0:04:11]} 42. Ke3 {[%emt 0:00:00]} e5 {[%emt 0:02:47]} 43. Rb8 {[%emt 0:00:00]} Ra5 {[%emt 0:00:20]} 44. Rf8+ {[%emt 0:00:00]} Ke6 {[%emt 0:01:11]} 45. Re8+ {[%emt 0:00:00]} Kf6 {[%emt 0:00:43]} 46. Rf8+ {[%emt 0:00:00]} Kg7 {[%emt 0:00:24]} 47. Rb8 {[%emt 0:00:00]} Kf6 {[%emt 0:03:38]} 48. Rf8+ {[%emt 0:00:00]} Ke7 {[%emt 0:00:24]} 49. Rh8 {[%emt 0:00:00]} Ra4 {[%emt 0:03:22]} 50. h3 {[%emt 0:00:00]} gxh3 {[%emt 0:00:27]} 51. Rxh3 {[%emt 0:00:00]} Ke6 {[%emt 0:00:12]} 52. Rh8 {[%emt 0:00:00]} Ra1 {[%emt 0:01:40]} 53. Re8+ {[%emt 0:00:00]} Kf5 {[%emt 0:00:21]} 54. Rf8+ {[%emt 0:00:00]} Ke6 {[%emt 0:01:01]} 55. Re8+ {[%emt 0:00:00]} Kf6 {[%emt 0:00:08]} 56. Rf8+ {[%emt 0:00:00]} Ke7 {[%emt 0:00:04]} 57. Rb8 {[%emt 0:00:00]} Ke6 58. Ke4 {Weighted Error Value: White=0.04 (flawless) /Black=0.04 (flawless)} 1/2-1/2

[Event "Mitropa Cup Open 2022"]
[Site "Corte"]
[Date "2022.05.06"]
[Round "7.7"]
[White "Roux, Baptiste"]
[Black "Diermair, Andreas"]
[Result "0-1"]
[ECO "B13"]
[WhiteElo "2072"]
[BlackElo "2461"]
[Annotator "TA"]
[PlyCount "134"]
[EventDate "2022.04.30"]
[EventType "team-tourn"]
[EventCountry "FRA"]
[SourceTitle "playchess.com"]
[Source "ChessBase"]
[SourceQuality "1"]
[WhiteTeam "France"]
[BlackTeam "Austria"]
[WhiteTeamCountry "FRA"]
[BlackTeamCountry "AUT"]
[TimeControl "40/5400+30:1800+30"]

{[%evp 9,134,10,15,17,20,16,14,0,0,0,0,-10,-6,-17,-16,-14,-9,-8,0,-12,0,-6,-6,-31,-8,-12,-16,-43,-49,-48,-1,-53,-29,-27,-11,-6,14,-17,-22,-46,-49,-48,-23,-75,-76,-97,-87,-75,-57,-35,-60,-118,-114,-120,-119,-126,-127,-129,-109,-109,-88,-107,-84,-112,-112,-179,-179,-176,-130,-130,-118,-123,-116,-233,-220,-373,-373,-325,-351,-422,-408,-414,-404,-369,-365,-1187,-1135,-1448,-440,-573,0,-1468,-1401,-2466,-2208,-4868,-2509,-5477,-2983,-7108,-5505,-5385,-5064,-3655,-3079,-29967,-29971,-29966,-29969,-29969,-12705,-10800,-5397,-29979,-29979,-29982,-29983,-29983,-29984,-29984,-29985,-29985,-29986,-29986,-29986,-29986,-29987]} 1. e4 {[%emt 0:00:07]} c6 {[%emt 0:00:09]} 2. d4 {[%emt 0:00:31]} d5 {[%emt 0:00:05]} 3. exd5 {[%emt 0:00:05]} cxd5 {[%emt 0:00:05]} 4. Nf3 {[%emt 0:00:06]} a6 {[%emt 0:03:19]} 5. Bd3 {[%emt 0:05:33]} Nc6 {[%emt 0:02:34]} 6. c3 {[%emt 0:03:45] B13: Caro-Kann: Exchange Variation and Panov-Botvinnik Attack.} Bg4 {[%emt 0:01:22][%cal Bc8g4,Bg4h5,Bh5g6][%mdl 32]} 7. O-O {[%emt 0:03:36]} e6 {[%emt 0:04:01]} 8. Nbd2 {[%emt 0:06:07] The position is equal.} Bd6 {[%emt 0:01:05]} 9. Re1 {[%emt 0:04:18]} Nge7 {[%emt 0:08:27] [#]} 10. Qe2 $146 {[%emt 0:12:47]} ({Predecessor:} 10. Nf1 h6 11. Ng3 Qc7 12. Be2 Ng6 13. Be3 O-O 14. Nf1 Na5 15. N3d2 Bxe2 16. Qxe2 {0-1 (66) Huber,W (2090)-Lendwai,R (2371) Oberwart 1999}) 10... Bh5 {[%emt 0:03:21]} 11. Qe3 {[%emt 0:13:53]} Bg6 {[%emt 0:03:37]} 12. Nb3 {[%emt 0:09:18]} Qc7 {[%emt 0:04:23]} 13. g3 {[%emt 0:04:22]} Rc8 {[%emt 0:05:52]} 14. Bd2 {[%emt 0:08:30]} O-O {[%emt 0:01:44]} 15. Bxg6 {[%emt 0:02:46]} Nxg6 {[%emt 0:00:23]} 16. Qd3 {[%emt 0:04:52]} Rfd8 {[%emt 0:04:57]} 17. Ng5 {[%emt 0:03:20]} Nf8 {[%emt 0:03:31]} 18. f4 {[%emt 0:00:42]} Ne7 {[%emt 0:01:52]} 19. Be3 {[%emt 0:02:26]} Qc4 {[%emt 0:02:22]} (19... g6 $15) 20. Rad1 {[%emt 0:02:55]} (20. Qxc4 $11 Rxc4 21. Nf3) 20... b5 {[%emt 0:02:06]} 21. Nc5 {[%emt 0:02:34]} Bxc5 {[%emt 0:09:57]} 22. dxc5 {[%emt 0:00:03]} Qxa2 {[%emt 0:05:13]} 23. Ra1 {[%emt 0:00:17]} Qc4 {[%emt 0:00:25]} (23... Qxb2 $2 24. Reb1 Qxa1 25. Rxa1 $18) 24. Qxc4 {[%emt 0:00:19]} bxc4 {[%emt 0:00:20]} 25. Rxa6 {[%emt 0:00:02]} Nd7 {[%emt 0:02:08]} 26. Rea1 {[%emt 0:06:01]} (26. g4 $11) 26... h6 $17 {[%emt 0:04:07]} ({Much weaker is} 26... Nxc5 27. Bxc5 Rxc5 28. Ra7 $11) 27. Nf3 {[%emt 0:00:16]} Nxc5 {[%emt 0:01:01]} 28. Ra7 {[%emt 0:00:02]} Nf5 {[%emt 0:01:58]} 29. Bxc5 {[%emt 0:00:33]} Rxc5 {[%emt 0:00:02]} 30. Rb7 {[%emt 0:00:12] Inhibits Rb5.} ({White should play} 30. g4 $15 Nd6 31. R1a6) 30... Nd6 {[%emt 0:02:02]} 31. Rb6 {[%emt 0:00:40]} Rb5 $36 {[%emt 0:01:03][%mdl 2048] Black is really pushing.} 32. Raa6 {[%emt 0:01:06]} Rxb6 {[%emt 0:00:48]} 33. Rxb6 {[%emt 0:00:02][%mdl 4096] Endgame KRN-KRN} Ne4 {[%emt 0:01:54]} 34. Ne5 {[%emt 0:03:00]} Ra8 {[%emt 0:03:23]} 35. Kg2 {[%emt 0:01:17]} Nc5 {[%emt 0:01:26]} 36. Rb5 {[%emt 0:01:27]} Rc8 {[%emt 0:02:25]} 37. h4 {[#]} (37. Kf3 $17) 37... h5 $1 $19 38. Nf3 {[%emt 0:01:07]} f6 {[%emt 0:04:01]} (38... g6 $19 39. Ne5 Rc7) 39. Nd4 {[%emt 0:00:16]} Kf7 {[%emt 0:00:37]} 40. Rb6 {[%emt 0:00:17]} Rc7 {[%emt 0:01:58]} 41. f5 {[%emt 0:16:04]} (41. Rb5 $17) 41... e5 {[%emt 0:22:04]} 42. Nc2 {[%emt 0:00:10] [#]} (42. Nc6) 42... Rb7 $1 {[%emt 0:00:30]} 43. Rxb7+ {[%emt 0:00:30]} Nxb7 {[%emt 0:00:03] KN-KN} 44. Ne3 {[%emt 0:00:13]} Nd6 {[%emt 0:00:12]} 45. Nxd5 Nxf5 46. Kf3 {[%emt 0:01:42]} Ke6 {[%emt 0:00:22]} 47. Nb6 (47. Nb4 e4+ 48. Kf4) 47... Nd6 48. Ke3 {[%emt 0:12:17]} Kf5 {[%emt 0:00:18]} (48... g5 $142 {White must now prevent ...gxh4.} 49. Kf2 g4) 49. Kf3 {[%emt 0:02:08]} Ke6 {[%emt 0:03:05] Prevents Nd5.} (49... e4+ $142 50. Kf2 Kg4) 50. Ke3 {[%emt 0:00:12]} g5 {[%emt 0:01:45]} 51. Kf2 {[%emt 0:01:14]} gxh4 {[%emt 0:00:30]} 52. gxh4 {[%emt 0:00:30]} f5 {[%emt 0:00:13][%cal Bf6f5,Bf5f4][%mdl 32] Threatens to win with ...f4.} 53. Ke3 {[%emt 0:01:15]} f4+ {[%emt 0:00:13]} 54. Kf3 {[%emt 0:00:03]} Kf5 {[%emt 0:00:22]} 55. Nd5 {[%emt 0:00:11]} e4+ {[%emt 0:00:06]} 56. Kf2 {[%emt 0:00:09]} Kg4 {[%emt 0:00:37] And now ...f3 would win.} 57. Kg2 {[%emt 0:00:50]} e3 {[%emt 0:00:38]} 58. Nf6+ {[%emt 0:00:13]} Kxh4 59. Kf3 Nf7 {[%emt 0:03:31] ( -> ...Ne5+)} 60. Nd5 {[%emt 0:01:21]} Ne5+ {[%emt 0:01:46]} 61. Kxf4 {[%emt 0:01:41] [#]} e2 $1 {[%emt 0:00:07] Black mates.} 62. Ne3 {[%emt 0:00:04]} (62. Kxe5 e1=Q+) 62... Nd3+ {[%emt 0:00:25]} 63. Kf3 {[%emt 0:00:10]} e1=Q {[%emt 0:00:12]} 64. Ng2+ {[%emt 0:00:06]} Kg5 {[%emt 0:00:12][%cal Rd3e5]} 65. Nxe1 {[%emt 0:00:08]} Nxe1+ {[%emt 0:00:03]} 66. Ke2 {[%emt 0:00:08]} Nd3 {[%emt 0:00:29]} 67. b4 {[%emt 0:00:21] [#]} cxb3 $1 {[%emt 0:01:37] Weighted Error Value: White=0.75/Black=0.19 (very precise)} 0-1